Cogmind - Beta 13 @@@ ROGUE MODE // 2024.03.26 @ 04:29:59 Player: f_ Result: Destroyed by H-55 Commando with Assault Rifle Performance ------------- Evolutions (2) 1000 Regions Visited (10) 2000 Robots Destroyed (128) 640 Value Destroyed (3383) 3383 Prototype IDs (14) 280 Alien Tech Used (0) 0 Bonus (2120) 2120 TOTAL SCORE: 9423 Bonus ------- High Alert Combat Kills 211 Follower Combat Kills 260 Entered Garrisons 400 Used RIF Installer 1000 Aligned with FarCom 300 Friendly Fire -51 Cogmind --------- Core Integrity 0/550 Matter 266/300 Energy 43/290 System Corruption 2% Temperature Cool (0) Movement Rolling (190) Ox6 Location -8/Garrison Parts ------- > --- POWER (1) -------- Improved Deuterium Engine > --- PROPULSION (2) --- Compact Wheel > --- UTILITY (6) ------ Huge Storage Unit Signal Interpreter Armor Integrity Analyzer Cloak of Protection Improved Power Shielding Improved Utility Shielding > --- WEAPON (2) ------- Precision Grenade Launcher Ripper > --- INVENTORY (25) --- Light Deuterium Engine Wheel Improved Heat Sink Trap Scanner Advanced Visual Processing Unit Improved Utility Shielding Light Armor Plating Light Armor Plating Light Armor Plating Reactive Plating Shock Absorption System Shock Absorption System Corruption Screen Trap Reconfigurator Beam Rifle AWS/Thermal Particle Cannon Heavy Particle Cannon Heavy Particle Cannon Heavy Particle Cannon Precision Grenade Launcher Scythe Peak State ------------ > --- POWER ------------ Improved Deuterium Engine > --- PROPULSION ------- Wheel Compact Wheel > --- UTILITY ---------- Huge Storage Unit Signal Interpreter Armor Integrity Analyzer Cloak of Protection Improved Power Shielding Improved Utility Shielding > --- WEAPON ----------- Precision Grenade Launcher Ripper > --- INVENTORY -------- Light Deuterium Engine Wheel Improved Heat Sink Trap Scanner Advanced Visual Processing Unit Improved Utility Shielding Light Armor Plating Light Armor Plating Light Armor Plating Reactive Plating Shock Absorption System Shock Absorption System Corruption Screen Trap Reconfigurator Beam Rifle AWS/Thermal Particle Cannon Heavy Particle Cannon Heavy Particle Cannon Heavy Particle Cannon Precision Grenade Launcher Scythe [Rating: 43] Favorites ----------- Power Heavy Ion Engine Engine Heavy Ion Engine Power Core Light Nuclear Core Propulsion Compact Wheel Wheel Compact Wheel Utility Huge Storage Unit Device Sensor Array Storage Huge Storage Unit Processor Signal Interpreter Hackware System Shield Protection Light Armor Plating Weapon Scythe Energy Gun Medium Laser Launcher Grenade Launcher Impact Weapon Great Maul Slashing Weapon Scythe Special Melee Weapon Datajack Build | -11 -10 -10 -9 -9 -9 -8 -8 -8 -8 -8 ------- Run | Yrd Mat Min Mat Min Exi Min Mat Gar Mat Gar Slots Evolved 4 | . . . 2 . . . 2 . . . Power . | . . . . . . . . . . . Propulsion . | . . . . . . . . . . . Utility 4 | . . . 2 . . . 2 . . . Weapon . | . . . . . . . . . . . Parts Attached 83 | 6 4 . 13 1 6 3 17 19 11 3 Power 8 | 1 . . 3 . . . 2 1 1 . Engine 7 | 1 . . 3 . . . 2 . 1 . Core 1 | . . . . . . . . 1 . . Reactor . | . . . . . . . . . . . Propulsion 18 | 2 1 . 4 . . . 5 1 4 1 Treads . | . . . . . . . . . . . Leg . | . . . . . . . . . . . Wheel 18 | 2 1 . 4 . . . 5 1 4 1 Hover . | . . . . . . . . . . . Flight . | . . . . . . . . . . . Utility 28 | 1 2 . 4 1 3 2 6 3 5 1 Device 6 | . 1 . . . 3 . . 1 . 1 Storage 4 | 1 1 . 2 . . . . . . . Processor 4 | . . . 1 . . . 1 1 1 . Hackware 1 | . . . . . . . 1 . . . Protection 13 | . . . 1 1 . 2 4 1 4 . Artifact . | . . . . . . . . . . . Weapon 29 | 2 1 . 2 . 3 1 4 14 1 1 Energy Gun 8 | 2 . . 1 . 1 . . 4 . . Energy Cannon . | . . . . . . . . . . . Ballistic Gun . | . . . . . . . . . . . Ballistic Cannon . | . . . . . . . . . . . Launcher 11 | . 1 . 1 . 1 . 3 4 . 1 Special Weapon . | . . . . . . . . . . . Impact Weapon 2 | . . . . . 1 1 . . . . Slashing Weapon 7 | . . . . . . . 1 5 1 . Piercing Weapon . | . . . . . . . . . . . Special Melee Weapon 1 | . . . . . . . . 1 . . Unidentified Prototypes 6 | . . . 2 . 3 . 1 . . . Parts Lost 25 | . . . 5 . . 2 8 5 3 2 Power 3 | . . . 1 . . . 1 1 . . Propulsion 11 | . . . 2 . . . 4 2 1 2 Utility 5 | . . . 1 . . 2 . 1 1 . Weapon 6 | . . . 1 . . . 3 1 1 . Highest Loss Streak 4 | . . . 3 . . 2 4 1 1 1 To Critical Strikes . | . . . . . . . . . . . Average Slot Usage (%) 86 | . 97 100 94 98 94 84 68 88 93 100 Engine 7 | . 14 14 11 11 11 11 8 3 4 9 Core 1 | . . . . . . . . 5 4 . Wheel 15 | . 28 28 21 22 22 22 5 15 13 18 Device 5 | . 11 14 11 11 11 . . 7 . 7 Storage 10 | . 14 14 11 11 11 11 9 9 9 9 Processor 6 | . . . 11 11 11 . 7 2 12 18 Hackware 4 | . . . . . . . 6 9 5 . Protection 17 | . . . 6 9 5 18 19 25 26 19 Energy Gun 4 | . 20 14 11 11 6 . . 4 . . Launcher 5 | . 7 14 11 11 11 11 2 2 . 3 Impact Weapon 2 | . . . . . 5 11 2 . . . Slashing Weapon 3 | . . . . . . . 6 3 12 14 Naked Turns . | . . . . . . . . . . . Heaviest Build 113 | 14 31 31 102 98 98 99 105 113 109 111 Greatest Support 32 | 32 32 26 32 32 32 32 32 26 20 26 Greatest Overweight (x) 34 | . 1 1 5 3 3 3 34 10 10 10 Average Overweight (x) 3 | . . 1 1 2 2 2 8 5 7 4 Largest Inventory Capacity 25 | 8 15 15 25 25 25 25 25 25 25 25 Average Capacity 23 | 6 11 15 20 25 25 25 25 25 25 25 Most Carried 25 | 3 15 15 18 16 22 22 25 25 25 24 Average Carried 20 | 1 6 15 15 15 17 19 23 23 23 23 Final Capacity 25 | 8 15 15 25 25 25 25 25 25 25 25 Final Carried 25 | 2 15 15 16 15 20 22 25 23 24 23 Class Distribution -------------------- 74% | Mutant 25% | Scavenger-Mutant Dominant Class ---------------- Mutant | -10/Materials Mutant | -10/Mines Mutant | -9/Materials Mutant | -9/Mines Mutant | -9/Exiles Mutant | -8/Mines Mutant | -8/Materials Scavenger-Mutant | -8/Garrison Scavenger-Mutant | -8/Materials Scavenger-Mutant | -8/Garrison Resources | -11 -10 -10 -9 -9 -9 -8 -8 -8 -8 -8 ----------- Run | Yrd Mat Min Mat Min Exi Min Mat Gar Mat Gar Matter Collected 2094 | . 326 71 378 . . 219 543 394 118 45 Remotely . | . . . . . . . . . . . Salvage Created 3300 | . 495 17 390 . . 287 817 682 472 140 Parts 199 | . 34 5 31 . . 5 52 45 19 8 Haulers Intercepted 7 | . 1 . 3 . . . 3 . . . Recyclers Shooed 3 | . 1 . 1 . . . 1 . . . Parts Field Recycled . | . . . . . . . . . . . Retrieved Matter . | . . . . . . . . . . . Parts Self-Destructed . | . . . . . . . . . . . Prevented . | . . . . . . . . . . . Kills | -11 -10 -10 -9 -9 -9 -8 -8 -8 -8 -8 ------- Run | Yrd Mat Min Mat Min Exi Min Mat Gar Mat Gar Combat Hostiles Destroyed 81 | . 7 . 17 . . 7 17 25 5 3 Melee 15 | . . . . . . . 6 1 5 3 Guns 23 | . 2 . 4 . . . . 17 . . AOE 43 | . 5 . 13 . . 7 11 7 . . Classes Destroyed 14 | . 8 . 2 . . 1 1 1 1 . Worker 10 | . 2 . . . . 1 3 . 4 . Builder 12 | . 2 1 2 . . 1 6 . . . Tunneler 1 | . 1 . . . . . . . . . Hauler 7 | . 1 . 3 . . . 3 . . . Recycler 7 | . 1 . . . . 1 3 . 2 . Operator 4 | . 2 . 1 . . . 1 . . . Watcher 6 | . 3 . 1 . . . 2 . . . Swarmer 17 | . . . 7 . . . . 10 . . Grunt 45 | . 7 . 5 . . 6 13 8 4 2 Brawler 1 | . . . . . . . . . 1 . Duelist 1 | . . . . . . 1 . . . . Sentry 14 | . . . 5 . . . 3 6 . . Hunter 2 | . . . . . . . 1 . . 1 Programmer 1 | . . . . . . . . 1 . . Best Kill Streak 8 | . 6 1 8 . . 4 7 7 4 2 Combat Bots Only 7 | . 3 . 5 . . 4 6 7 2 2 Max Kills in Single Turn 3 | . 1 1 2 . . 1 2 3 1 1 Gunslinging . | . . . . . . . . . . . Exploded 3 | . 1 . 2 . . 1 2 3 . . Melee 1 | . . . . . . . 1 1 1 1 Uniques/NPCs Destroyed . | . . . . . . . . . . . Combat | -11 -10 -10 -9 -9 -9 -8 -8 -8 -8 -8 -------- Run | Yrd Mat Min Mat Min Exi Min Mat Gar Mat Gar Hostile Shots Fired 288 | . 11 . 77 . . 21 71 75 18 15 Missed 75 | . 2 . 24 . . 5 17 22 2 3 Damage Taken 3310 | . 123 . 631 . . 346 945 809 262 194 Core 782 | . 52 . 131 . . 48 297 166 47 41 Absorbed by Shields . | . . . . . . . . . . . Redirected to Shielding 155 | . . . . . . . 46 29 29 51 Ignored by Resistances 48 | . . . . . . . . 46 2 . Core Remaining (%) 78 | 100 . 79 . . . 55 . . . . Volleys Fired 164 | . 35 2 66 . . 13 29 16 . 3 Largest 2 | . 2 1 1 . . 1 1 1 . 1 Hottest 100 | . 100 50 56 . . 30 36 56 . 36 Shots Fired 232 | . 49 2 66 . . 13 29 70 . 3 Gun 129 | . 40 2 31 . . . . 56 . . Cannon . | . . . . . . . . . . . Launcher 103 | . 9 . 35 . . 13 29 14 . 3 Special . | . . . . . . . . . . . Kinetic . | . . . . . . . . . . . Thermal 129 | . 40 2 31 . . . . 56 . . Explosive 103 | . 9 . 35 . . 13 29 14 . 3 Electromagnetic . | . . . . . . . . . . . Robot Hit Streak 27 | . 11 3 6 . . 6 15 27 . 10 Robot Miss Streak 6 | . 3 . 6 . . . 2 3 . . Penetration Max . | . . . . . . . . . . . Secondary Targets . | . . . . . . . . . . . Autonomous 56 | . . . . . . . . 56 . . Shots Hit Robots 187 | . 28 2 24 . . 11 42 54 18 8 Core Hits 203 | . 32 1 51 . . 16 50 38 9 6 Critical Kills 1 | . . . . . . . 1 . . . Critical Parts Destroyed 1 | . . . . . . 1 . . . . Critical Strikes 12 | . 3 . 3 . . 1 3 1 1 . Burn 6 | . 3 . 3 . . . . . . . Smash 2 | . . . . . . 1 1 . . . Sever 4 | . . . . . . . 2 1 1 . Melee Attacks 116 | . . . . . . 7 37 27 36 9 Impact 18 | . . . . . . 7 11 . . . Slashing 95 | . . . . . . . 26 24 36 9 Piercing . | . . . . . . . . . . . Sneak Attacks 21 | . . . . . . 3 8 3 7 . Combat Hostiles . | . . . . . . . . . . . Follow-up Attacks 4 | . . . . . . . 1 . 3 . Damage Inflicted 10920 | . 890 24 1433 . . 1568 3601 2172 858 374 Guns 1756 | . 310 24 231 . . . . 1191 . . Cannons . | . . . . . . . . . . . Explosions 6431 | . 580 . 1202 . . 1127 2424 919 . 179 Melee 2733 | . . . . . . 441 1177 62 858 195 Ramming . | . . . . . . . . . . . Kinetic . | . . . . . . . . . . . Thermal 1792 | . 346 24 231 . . . . 1191 . . Explosive 6379 | . 528 . 1202 . . 1127 2424 919 . 179 Electromagnetic 16 | . 16 . . . . . . . . . Impact 781 | . . . . . . 441 340 . . . Slashing 1952 | . . . . . . . 837 62 858 195 Piercing . | . . . . . . . . . . . Highest Corruption 2 | . 2 2 . . . . . 1 2 2 Average Corruption 1 | . 2 2 . . . . . 1 1 2 Corruption Purged . | . . . . . . . . . . . Corruption Blocked 1 | . . . . . . . . 1 . . Effects 32 | . 3 4 . . . . . 14 7 4 Message Errors 2 | . . . . . . . . . 2 . Matter Fused 9 | . 1 . . . . . . 5 2 1 Heat Flow Errors 5 | . 1 1 . . . . . 2 1 . Energy Discharges 4 | . . . . . . . . 2 . 2 Parts Rejected 2 | . . . . . . . . 1 1 . Parts Fused 1 | . . 1 . . . . . . . . Data Loss (minor) 4 | . . 1 . . . . . 3 . . Data Loss (major) 2 | . . . . . . . . . 1 1 Alerts 2 | . 1 1 . . . . . . . . Weapon Failures 1 | . . . . . . . . 1 . . Overload Shots . | . . . . . . . . . . . Overflow Damage 701 | . . . 19 . . 346 247 1 88 . Projectiles 23 | . . . . . . 23 . . . . Explosions 148 | . . . 19 . . 25 103 1 . . Melee 530 | . . . . . . 298 144 . 88 . Knockbacks 5 | . . . . . . 4 1 . . . Impact 4 | . . . . . . 3 1 . . . Kinetic . | . . . . . . . . . . . Secondary 1 | . . . . . . 1 . . . . Self-Inflicted Damage 250 | . 15 . 31 . . 33 31 140 . . Shots 14 | . 1 . 3 . . 3 1 6 . . Rammed . | . . . . . . . . . . . Targets Rammed . | . . . . . . . . . . . Kicked . | . . . . . . . . . . . Crushed . | . . . . . . . . . . . Highest Temperature 448 | . 279 151 448 . . 80 66 245 232 . Average Temperature 68 | . 56 56 89 . . 43 27 66 119 . Received Heat Transfer 1290 | . 60 . 123 . . 207 486 225 153 36 Siege Activations . | . . . . . . . . . . . Robots Corrupted . | . . . . . . . . . . . Combat Hostiles . | . . . . . . . . . . . Parts Fried 5 | . . . . . . 2 3 . . . Impact Corruptions 16 | . . . . . . 12 4 . . . Robots Melted . | . . . . . . . . . . . Combat Hostiles . | . . . . . . . . . . . Parts Melted 10 | . 5 . 3 . . . . 2 . . Heat Transferred 3533 | . 1147 74 851 . . . . 1461 . . Parts Sabotaged . | . . . . . . . . . . . Parts Stolen . | . . . . . . . . . . . Parts Stripped . | . . . . . . . . . . . Power Chain Reactions 1 | . 1 . . . . . . . . . Alert | -11 -10 -10 -9 -9 -9 -8 -8 -8 -8 -8 ------- Run | Yrd Mat Min Mat Min Exi Min Mat Gar Mat Gar Peak Influence 1049 | . 255 50 468 182 . 220 451 1049 510 324 Initial 510 | . . 44 19 182 . . 44 13 510 227 Average 270 | . 112 47 255 182 . 30 137 555 361 252 Maximum Alert Level 3 | . 1 . 2 . . 1 2 3 2 1 Low Security (%) 53 | 100 88 100 38 100 . 98 75 25 . . Level 1 25 | . 11 . 52 . . 1 23 8 79 100 Level 2 10 | . . . 8 . . . 1 26 20 . Level 3 10 | . . . . . . . . 38 . . Level 4 . | . . . . . . . . . . . Level 5 . | . . . . . . . . . . . High Security . | . . . . . . . . . . . Max Security . | . . . . . . . . . . . Squads Dispatched 9 | . 2 . 2 1 . . 4 . . . Investigation 2 | . 1 . . . . . 1 . . . Extermination . | . . . . . . . . . . . Reinforcement 6 | . 1 . 2 . . . 3 . . . Assault 1 | . . . . 1 . . . . . . Garrison . | . . . . . . . . . . . Intercept . | . . . . . . . . . . . Searches Triggered . | . . . . . . . . . . . Construction Impeded 1 | . . . . . . . 1 . . . Haulers Reinforced . | . . . . . . . . . . . Active Scanning Responses . | . . . . . . . . . . . Cargo Convoy Interrupts . | . . . . . . . . . . . Stealth | -11 -10 -10 -9 -9 -9 -8 -8 -8 -8 -8 --------- Run | Yrd Mat Min Mat Min Exi Min Mat Gar Mat Gar Distress Signals 6 | . 1 1 1 . . . 3 . . . Communications Jammed . | . . . . . . . . . . . Distress Signals . | . . . . . . . . . . . Times Spotted 117 | . 10 . 27 . . 11 27 28 9 5 Peak Tracking Total 8 | . 2 . 8 . . 4 5 6 4 3 Tactical Retreats 7 | . . . . . . 3 2 1 1 . Traps | -11 -10 -10 -9 -9 -9 -8 -8 -8 -8 -8 ------- Run | Yrd Mat Min Mat Min Exi Min Mat Gar Mat Gar Traps Triggered 7 | . . . . . . . . 6 1 . Indirectly . | . . . . . . . . . . . Trap Hack Attempts . | . . . . . . . . . . . Triggered . | . . . . . . . . . . . Disarmed . | . . . . . . . . . . . Reprogrammed . | . . . . . . . . . . . Reused . | . . . . . . . . . . . Traps Extracted . | . . . . . . . . . . . Installed . | . . . . . . . . . . . Triggered . | . . . . . . . . . . . Machines | -11 -10 -10 -9 -9 -9 -8 -8 -8 -8 -8 ---------- Run | Yrd Mat Min Mat Min Exi Min Mat Gar Mat Gar Machines Disabled 4 | . 3 . . . . . 1 . . . Max in Single Turn 1 | . 1 . . . . . 1 . . . Machines Repaired . | . . . . . . . . . . . Machines Dismantled . | . . . . . . . . . . . Machines Sabotaged . | . . . . . . . . . . . Overloaded Fab Kills . | . . . . . . . . . . . Hacking | -11 -10 -10 -9 -9 -9 -8 -8 -8 -8 -8 --------- Run | Yrd Mat Min Mat Min Exi Min Mat Gar Mat Gar Machines Accessed 20 | . 4 . 3 . 1 . 3 4 4 1 Terminals 17 | . 4 . 3 . . . 2 4 3 1 Fabricators . | . . . . . . . . . . . Repair Stations . | . . . . . . . . . . . Recycling Units . | . . . . . . . . . . . Scanalyzers . | . . . . . . . . . . . Garrison Access 2 | . . . . . . . 1 . 1 . Total Hacks 43 | . 11 . 4 . 2 . 6 8 9 3 Successful 21 | . 4 . 3 . 2 . 3 2 6 1 Failed 22 | . 7 . 1 . . . 3 6 3 2 Catastrophic . | . . . . . . . . . . . Database Lockouts . | . . . . . . . . . . . Manual 1 | . . . . . 1 . . . . . Terminals 39 | . 11 . 4 . . . 5 8 8 3 Fabricators . | . . . . . . . . . . . Repair Stations . | . . . . . . . . . . . Recycling Units . | . . . . . . . . . . . Scanalyzers . | . . . . . . . . . . . Garrison Access 2 | . . . . . . . 1 . 1 . Terminal Hacks 19 | . 4 . 3 . 2 . 2 2 5 1 Record 2 | . . . . . 2 . . . . . Robot Analysis 2 | . 2 . . . . . . . . . Prototype ID Bank 5 | . . . 1 . . . 1 . 3 . Open Door 1 | . . . . . . . . 1 . . Branch Access Points 2 | . 1 . . . . . . . 1 . Alert Level 2 | . . . 2 . . . . . . . Unreport Threat 2 | . . . . . . . 1 . 1 . Zone Layout 1 | . 1 . . . . . . . . . Garrison Registry 1 | . . . . . . . . . . 1 Security Stations 1 | . . . . . . . . 1 . . Fabricator Hacks . | . . . . . . . . . . . Repair Station Hacks . | . . . . . . . . . . . Recycling Unit Hacks . | . . . . . . . . . . . Scanalyzer . | . . . . . . . . . . . Garrison Access Hacks 2 | . . . . . . . 1 . 1 . Unlock Access 2 | . . . . . . . 1 . 1 . Unauthorized Hacks . | . . . . . . . . . . . Terminals . | . . . . . . . . . . . Fabricators . | . . . . . . . . . . . Repair Stations . | . . . . . . . . . . . Recycling Units . | . . . . . . . . . . . Scanalyzers . | . . . . . . . . . . . Garrison Access . | . . . . . . . . . . . Data Cores Recovered 1 | . 1 . . . . . . . . . Used . | . . . . . . . . . . . Hacking Detections 11 | . 2 . 2 . . . 1 3 2 1 Full Trace Events 6 | . 2 . . . . . 1 2 1 . Feedback Events 1 | . . . . . . . . 1 . . Corruption 1 | . . . . . . . . 1 . . Feedback Blocked . | . . . . . . . . . . . Robot Schematics Acquired . | . . . . . . . . . . . Robots Built . | . . . . . . . . . . . Authchips . | . . . . . . . . . . . Time . | . . . . . . . . . . . Total Robot Build Rating . | . . . . . . . . . . . Part Schematics Acquired . | . . . . . . . . . . . Parts Built . | . . . . . . . . . . . Authchips . | . . . . . . . . . . . Time . | . . . . . . . . . . . Total Part Build Rating . | . . . . . . . . . . . Parts Repaired . | . . . . . . . . . . . Time . | . . . . . . . . . . . Parts Recycled . | . . . . . . . . . . . Recycled Matter . | . . . . . . . . . . . Retrieved Matter . | . . . . . . . . . . . Retrieved Components . | . . . . . . . . . . . Parts Scanalyzed . | . . . . . . . . . . . Part Schematics Acquired . | . . . . . . . . . . . Parts Damaged . | . . . . . . . . . . . Bothacking | -11 -10 -10 -9 -9 -9 -8 -8 -8 -8 -8 ------------ Run | Yrd Mat Min Mat Min Exi Min Mat Gar Mat Gar Used RIF Installer 2 | . . . . . . . . 2 . . Zone Cloak 1 | . . . . . . . . 1 . . Robots Hacked . | . . . . . . . . . . . Non-combat . | . . . . . . . . . . . Combat . | . . . . . . . . . . . Robot Hacks Applied . | . . . . . . . . . . . Relay Couplers Released . | . . . . . . . . . . . Fabnet Peak Effective % . | . . . . . . . . . . . Robots Rewired 3 | . . . . . . . . 3 . . Allies Hacked . | . . . . . . . . . . . Hacks Repelled . | . . . . . . . . . . . Allies | -11 -10 -10 -9 -9 -9 -8 -8 -8 -8 -8 -------- Run | Yrd Mat Min Mat Min Exi Min Mat Gar Mat Gar Total Allies 8 | . . 4 . 1 . . . 3 . . Largest Group 4 | . . 4 4 1 1 1 . 3 3 . Highest-Rated Group 84 | . . 71 71 31 31 31 . 84 84 . Highest-Rated Ally 39 | . . 31 31 31 31 31 . 39 39 . Total Orders 1 | . . . . . . . . . 1 . GUARD 1 | . . . . . . . . . 1 . Ally Attacks 57 | . . 3 21 . . 18 . 4 11 . Total Damage 907 | . . 21 146 . . 251 . 134 355 . Kills 13 | . . 1 5 . . 1 . 2 4 . Allies Corrupted . | . . . . . . . . . . . Allies Melted . | . . . . . . . . . . . Intel | -11 -10 -10 -9 -9 -9 -8 -8 -8 -8 -8 ------- Run | Yrd Mat Min Mat Min Exi Min Mat Gar Mat Gar Robot Analysis Total 2 | . 2 . . . . . . . . . Derelict Logs Recovered 1 | . . . . 1 . . . . . . Drone Launches . | . . . . . . . . . . . Drone Recoveries . | . . . . . . . . . . . Exploration | -11 -10 -10 -9 -9 -9 -8 -8 -8 -8 -8 ------------- Run | Yrd Mat Min Mat Min Exi Min Mat Gar Mat Gar Turns Passed 7526 | 40 478 182 772 217 339 927 1724 1958 599 290 Spaces Moved 3588 | 30 371 160 504 146 238 456 313 975 244 151 Core 64 | 7 . . . . . . 57 . . . Treads . | . . . . . . . . . . . Legs . | . . . . . . . . . . . Wheels 3524 | 23 371 160 504 146 238 456 256 975 244 151 Hover . | . . . . . . . . . . . Flight . | . . . . . . . . . . . Fastest Speed 50 | 50 100 105 105 130 130 130 130 150 140 150 Average Speed 169 | 88 100 105 119 142 137 141 438 170 193 153 Slowest Speed 1750 | 100 105 105 175 145 145 145 1750 230 230 230 Overloaded Moves . | . . . . . . . . . . . Propulsion Burnouts . | . . . . . . . . . . . Robots Hopped . | . . . . . . . . . . . Cave-ins Triggered . | . . . . . . . . . . . Exploration Rate (%) 47 | 3 64 43 63 40 60 75 32 89 23 35 Regions Visited 10 Branch Regions 4 Pre-discovered Areas 1 | . . . . 1 . . . . . . Known Exits Taken 7 | . 1 . 1 1 1 1 1 . 1 . Unknown Exits Taken 2 | 1 . 1 . . . . . . . . Scrap Searched 3 | . . 2 . . . 1 . . . . Spaces Dug 38 | . . . . . . 11 8 9 9 1 Terrain Destroyed 529 | . 35 . 83 . . 102 147 121 9 32 Melee 10 | . . . . . . . . . 9 1 Projectile . | . . . . . . . . . . . AOE 519 | . 35 . 83 . . 102 147 121 . 31 Terrain Rammed . | . . . . . . . . . . . Walls Destroyed . | . . . . . . . . . . . Machines Disabled . | . . . . . . . . . . . Actions | -11 -10 -10 -9 -9 -9 -8 -8 -8 -8 -8 --------- Run | Yrd Mat Min Mat Min Exi Min Mat Gar Mat Gar Total 4691 | 43 427 172 611 155 252 712 575 1228 324 192 Wait 593 | . 3 9 3 9 . 226 151 140 26 26 Move 3580 | 29 370 159 503 145 237 455 313 974 244 151 Hop . | . . . . . . . . . . . Pick Up 84 | 8 14 1 14 . 3 5 21 11 7 . Fast Attach 6 | . . . 2 . . . 2 . 2 . Attach 50 | 6 1 . 5 1 5 2 10 14 5 1 Detach 11 | . . . . . 6 . . 5 . . Swap 27 | . 3 . 6 . 1 1 5 5 4 2 Drop 38 | . 1 1 12 . . 3 8 8 5 . Fire 164 | . 35 2 66 . . 13 29 16 . 3 Melee 106 | . . . . . . 7 36 23 31 9 Ram . | . . . . . . . . . . . Kick . | . . . . . . . . . . . Crush . | . . . . . . . . . . . Escape Stasis 32 | . . . . . . . . 32 . . Rewire . | . . . . . . . . . . . Trap . | . . . . . . . . . . . Miscellaneous . | . . . . . . . . . . . Route ------- -11/Scrapyard -10/Materials (discovered 4 exits: *Mat x3 / *Min) -10/Mines -9/Materials (discovered 3 exits: *Mat x2 / *Min) -9/Mines (discovered 3 exits: *Mat x2 / *Exi) -9/Exiles -8/Mines -8/Materials (discovered 2 exits: [*Fac] / Gar) -8/Garrison (discovered 3 exits: *Mat x3) -8/Materials (discovered 2 exits: Sto / Gar) -8/Garrison (discovered 3 exits: [*Fac x3]) History --------- Turn | Location | Event 23 | -11/Scrapyard | Discovered new exit (range 15) 41 | -11/Scrapyard | Entered Materials 175 | -10/Materials | Discovered new exit (range 6) 262 | -10/Materials | Discovered new exit (range 15) 303 | -10/Materials | Build established: Mutant 318 | -10/Materials | Discovered new exit (range 15) 400 | -10/Materials | Identified exit to Mines 519 | -10/Materials | Entered Mines 522 | -10/Mines | Received a Mining Laser from a helpful Derelict 537 | -10/Mines | Assembled infested the area 542 | -10/Mines | Assisted by a Guerilla fighting off Assembled 589 | -10/Mines | Assisted by bots powering up and referring to "LRC-V3" 598 | -10/Mines | Met a Derelict bent on vengeance 695 | -10/Mines | Discovered new exit (range 6) 701 | -10/Mines | Entered Materials 701 | -9/Materials | Accompanied by 4 allies 701 | -9/Materials | Evolved 2 slots: Utility x2 915 | -9/Materials | Lost 3 allies 1166 | -9/Materials | Discovered new exit (range 15) 1300 | -9/Materials | Lost 3 parts (1n1u1w) 1416 | -9/Materials | Discovered new exit (range 16) 1438 | -9/Materials | Identified exit to Mines 1447 | -9/Materials | Discovered new exit (range 5) 1452 | -9/Materials | Identified exit to Materials 1473 | -9/Materials | Entered Mines 1493 | -9/Mines | Discovered exit to Materials (range 6) 1517 | -9/Mines | Met a Derelict testing a Signal Generator 1519 | -9/Mines | Discovered exit to Materials (range 8) 1666 | -9/Mines | Learned location of Zion (-7) 1683 | -9/Mines | Deemed a non-threat by the Exiles lab entrance 1683 | -9/Mines | Discovered new exit (range 5) 1689 | -9/Mines | Identified exit to Exiles 1690 | -9/Mines | Entered Exiles 1690 | -9/Exiles | Accompanied by 1 ally 1725 | -9/Exiles | Met 8R-AWN 1751 | -9/Exiles | Met EX-HEX 1793 | -9/Exiles | Met EX-BIN 1809 | -9/Exiles | Aligned with FarCom system 1811 | -9/Exiles | Given EX-Vault access code 1844 | -9/Exiles | Opened EX-Vault 1850 | -9/Exiles | Found Prototype Device 1858 | -9/Exiles | Found Prototype Device 1865 | -9/Exiles | Found Prototype Energy Gun 1866 | -9/Exiles | Identified Trap Reconfigurator 1868 | -9/Exiles | Identified Cloak of Protection 1871 | -9/Exiles | Identified AWS/Thermal 1903 | -9/Exiles | Warned to stay clear of 0b10 Research branches 1941 | -9/Exiles | Met EX-DEC 2016 | -9/Exiles | Discovered new exit (range 11) 2028 | -9/Exiles | Identified exit to Mines 2029 | -9/Exiles | Stole three prototypes: Cloak of Protection, Trap Reconfigurator, AWS/Thermal 2029 | -9/Exiles | Entered Mines 2029 | -8/Mines | Accompanied by 1 ally 2889 | -8/Mines | Discovered exit to Materials (range 11) 2956 | -8/Mines | Entered Materials 2956 | -8/Materials | Evolved 2 slots: Utility x2 3342 | -8/Materials | Discovered new exit (range 14) 3531 | -8/Materials | Core integrity fell below 50% 3549 | -8/Materials | Lost 4 parts (1p2n1w) 4680 | -8/Materials | Identified exit to Garrison 4680 | -8/Materials | Entered Garrison 4746 | -8/Garrison | Installed Relay Interface Framework 5232 | -8/Garrison | Destroyed 7 combat bots 5300 | -8/Garrison | Triggered checkpoint 5380 | -8/Garrison | Triggered checkpoint 5413 | -8/Garrison | Discovered new exit (range 14) 5622 | -8/Garrison | Triggered checkpoint 5700 | -8/Garrison | Triggered checkpoint 5717 | -8/Garrison | Core integrity fell below 20% 5773 | -8/Garrison | Learned Materials security intel 5819 | -8/Garrison | Expanded RIF knowledge: Zone Cloak 5871 | -8/Garrison | Build established: Scavenger-Mutant 5908 | -8/Garrison | Discovered new exit (range 13) 6359 | -8/Garrison | Discovered new exit (range 12) 6394 | -8/Garrison | Build established: Mutant 6402 | -8/Garrison | Identified exit to Materials 6454 | -8/Garrison | Triggered checkpoint 6638 | -8/Garrison | Entered Materials 6638 | -8/Materials | Accompanied by 3 allies 6656 | -8/Materials | Identified exit to Storage 6697 | -8/Materials | Build established: Scavenger-Mutant 7237 | -8/Materials | Identified exit to Garrison 7237 | -8/Materials | Entered Garrison 7290 | -8/Garrison | Discovered new exit (range 69) 7290 | -8/Garrison | Discovered new exit (range 74) 7290 | -8/Garrison | Discovered new exit (range 59) 7420 | -8/Garrison | Triggered checkpoint 7527 | -8/Garrison | Destroyed by H-55 Commando with Assault Rifle Last Messages --------------- 07387_ Machine disabled. 07390_ Penetrated by Slug. 07390_ Wheel destroyed. 07391_ H-55 Commando destroyed. 07393_ Acquired 25 matter. 07397_ Acquired 10 matter. 07420_ Beams of light sweep through the air. An alarm sounds. 07430_ G-47 Trooper destroyed. 07437_ ALERT: Dispatching investigation squad to Factory. 07440_ Acquired 10 matter. 07480_ System corrupted: Energy discharge (-29). 07503_ Detecting nearby RIF Installer. 07521_ H-55 Commando springs to life. 07521_ Penetrated by Slug. 07524_ Slug penetrates Wall. 07527_ The unstable cave ceiling collapses. 07527_ Penetrated by Slug. 07527_ Wheel destroyed. Map ----- +----------------------------------------------------+ | ?????????????????????????????????????# #### | | ?????????????????????????????????##### #### | | ?????????????????????????????????# + | | ?????????????????????????????????# + | | ????????????????????????#######??# ####### | | ?????????????????#####??#"""""#??# #?????# | | ?????????????????#!!!##### ##### #?????# | | ?????????????????# ####### | | ?????????????????#!!!#####"""##### " | | ?????????????????#####???# Y#???# ####### | | ?????????????????????????#####???# #?????# | | ?????????????????????????????????# #?????# | | ??????????########################+"####### | | ??????????# | | ??????????# ^^ | | ??????????# ^ ^^ | | ??????????# < ######+#######+#######+######## | | ??????????# #????# #?????# #?????# #??????? | | ??????????#####????# #?????# #?????# #??????? | | ???????????????????# #?????# #?????# #??????? | | ???????????????????# #?????# #?????# #??????? | | ???????????????????# #?????# #?????# #??????? | | ???????????????????# #?????# #?????# #??????? | | ???????????????????# #?????# #?????# #??????? | | ???????????????????# #?????# #?????# #??????? | | ????????????????####@#?????# #?????# #??????? | | ????????????????# ## #?????# #?????# #??????? | | ????????????#####Y## ####??# ####??# ####???? | | ????????????#""""^## #??# # #??# # #???? | | ????????????#" Y #??# #??# #???? | | ????????????#"""" # #??# # #??# # #???? | | ????????????####### [[#??# #!!#??# #!!#???? | | ????????????????# # h [[#??# #!!#??# #!!#???? | | ????????????????#### ##??######??######???? | | ??????????????????? ?????????????????????? | | ?????????????????? ?????????????????????? | | ?????????????????? #####????????????????????? | | ??????????????????#?????????????????????????? | | ????????????????????????????????????????????? | | ????????????????????????????????????????????? | | ????????????????????????????????????????????? | | ????????????????????????????????????????????? | | ????????????????????????????????????????????? | | ????????????????????????????????????????????? | | ????????????????????????????????????????????? | | ????????????????????????????????????????????? | | ????????????????????????????????????????????? | | ????????????????????????????????????????????? | | | | | +----------------------------------------------------+ Best States ------------- Heat Dissipation 31 Energy Generation 16 Energy Capacity 290 Matter Stores 300 Matter Capacity 300 Sight Range 16 Robot Scan Range 14 Terrain Scan Density 10 Cloak Strength 5 Corruption Block 8 Armor Coverage 300 Resistance: KI 20 Power Shielding 66 Utility Shielding 66 Evasion (%) 40 Armor Integrity Analysis 30 Defensive Hacking 10 Item Schematics ----------------- None Robot Schematics ------------------ None Fabricated ------------ Nothing Alien Tech Used ----------------- None Achievements -------------- None Challenges ------------ None Game ------ Seed NeutrinoAssaultCoupler Manual? 0 Play Time 01:05:20 Cumulative 76.4 hours Start 2024.03.26 @ 03:23:58 End 2024.03.26 @ 04:29:59 Sessions 1 Manual Loads 0 Difficulty Rogue Special Mode None Game No. 72 Rogue 70 Adventurer 0 Explorer 2 Win Type - Total 0 Types 0/0/0/0/0/0/0/0/0 Lore% 21 Gallery% 34 Achievement% 22 Wizard Run 0 Options --------- Layout 1 ASCII 0 Keyboard 0 Movement Mouse Keybinds 0 Fullscreen 2 Font 48/Tamsyn Map View 50x35 Zoom Use 0% Tactical HUD 1 Map Filters NONE Filters NONE Steam 1 RUN: fd73cc25-0b09-4964-a6c4-98c0d10af4c0